[Event "Open NK Rapid 2025 bord 26-50"]
[Site "Helmond, Netherlands"]
[Date "2025.05.03"]
[Round "5.1"]
[White "Thodam, Malte"]
[Black "Van Beek, Harmen"]
[Result "1-0"]
[TimeControl "15 min +5 sec increment"]
[WhiteFideId "24687120"]
[BlackFideId "40100022"]
[WhiteElo "2044"]
[BlackElo "1806"]

1. e4 {[%clk 00:15:07]} {[%emt 00:00:02]} c6 {[%clk 00:15:03]} {[%emt
00:00:07]} 2. d4 {[%clk 00:15:07]} {[%emt 00:00:05]} d5 {[%clk 00:15:07]}
{[%emt 00:00:02]} 3. e5 {[%clk 00:15:11]} {[%emt 00:00:02]} c5 {[%clk
00:15:09]} {[%emt 00:00:03]} 4. dxc5 {[%clk 00:15:12]} {[%emt 00:00:03]} Nc6
{[%clk 00:15:12]} {[%emt 00:00:02]} 5. Nf3 {[%clk 00:14:49]} {[%emt 00:00:28]}
Bg4 {[%clk 00:15:09]} {[%emt 00:00:08]} 6. Be2 {[%clk 00:14:38]} {[%emt
00:00:16]} e6 {[%clk 00:15:01]} {[%emt 00:00:13]} 7. Be3 {[%clk 00:13:34]}
{[%emt 00:01:09]} Bxf3 {[%clk 00:12:25]} {[%emt 00:02:41]} 8. Bxf3 {[%clk
00:13:36]} {[%emt 00:00:03]} Nxe5 {[%clk 00:12:23]} {[%emt 00:00:06]} 9. Be2
{[%clk 00:13:29]} {[%emt 00:00:12]} Rc8 {[%clk 00:10:34]} {[%emt 00:01:55]} 10.
b4 {[%clk 00:12:02]} {[%emt 00:01:31]} Nf6 {[%clk 00:09:56]} {[%emt 00:00:44]}
11. O-O {[%clk 00:11:13]} {[%emt 00:00:54]} Be7 {[%clk 00:09:51]} {[%emt
00:00:10]} 12. c3 {[%clk 00:11:06]} {[%emt 00:00:12]} O-O {[%clk 00:09:43]}
{[%emt 00:00:12]} 13. Nd2 {[%clk 00:10:32]} {[%emt 00:00:40]} b6 {[%clk
00:07:21]} {[%emt 00:02:28]} 14. cxb6 {[%clk 00:10:20]} {[%emt 00:00:17]} axb6
{[%clk 00:07:22]} {[%emt 00:00:03]} 15. Qb3 {[%clk 00:08:04]} {[%emt 00:02:21]}
Qc7 {[%clk 00:06:04]} {[%emt 00:01:24]} 16. Rfc1 {[%clk 00:07:21]} {[%emt
00:00:47]} Nc4 {[%clk 00:05:16]} {[%emt 00:00:52]} 17. Nxc4 {[%clk 00:07:05]}
{[%emt 00:00:22]} dxc4 {[%clk 00:05:18]} {[%emt 00:00:03]} 18. Qc2 {[%clk
00:07:00]} {[%emt 00:00:09]} Bd6 {[%clk 00:04:40]} {[%emt 00:00:44]} 19. g3
{[%clk 00:06:16]} {[%emt 00:00:50]} Nd5 {[%clk 00:04:38]} {[%emt 00:00:06]} 20.
Qe4 {[%clk 00:04:48]} {[%emt 00:01:32]} Nxe3 {[%clk 00:04:32]} {[%emt
00:00:11]} 21. Qxe3 {[%clk 00:04:51]} {[%emt 00:00:03]} Rfd8 {[%clk 00:03:47]}
{[%emt 00:00:50]} 22. a4 {[%clk 00:04:31]} {[%emt 00:00:25]} Ra8 {[%clk
00:02:43]} {[%emt 00:01:09]} 23. Bf3 {[%clk 00:04:26]} {[%emt 00:00:10]} Ra7
{[%clk 00:02:01]} {[%emt 00:00:47]} 24. Rd1 {[%clk 00:03:26]} {[%emt 00:01:04]}
Be7 {[%clk 00:01:57]} {[%emt 00:00:10]} 25. Rxd8+ {[%clk 00:03:20]} {[%emt
00:00:11]} Bxd8 {[%clk 00:01:55]} {[%emt 00:00:07]} 26. Qe4 {[%clk 00:02:30]}
{[%emt 00:00:55]} Bf6 {[%clk 00:01:43]} {[%emt 00:00:16]} 27. Ra3 {[%clk
00:01:35]} {[%emt 00:01:01]} g6 {[%clk 00:01:07]} {[%emt 00:00:41]} 28. Qc6
{[%clk 00:01:25]} {[%emt 00:00:15]} Qxc6 {[%clk 00:00:46]} {[%emt 00:00:26]} 29.
Bxc6 {[%clk 00:01:28]} {[%emt 00:00:02]} Bd8 {[%clk 00:00:27]} {[%emt
00:00:25]} 30. Kf1 {[%clk 00:01:18]} {[%emt 00:00:15]} Kf8 {[%clk 00:00:25]}
{[%emt 00:00:07]} 31. Ke2 {[%clk 00:01:21]} Ke7 {[%clk 00:00:19]} {[%emt
00:00:11]} 32. Ke3 {[%clk 00:01:11]} {[%emt 00:00:16]} Kd6 {[%clk 00:00:17]}
{[%emt 00:00:07]} 33. Bb5 {[%clk 00:01:13]} {[%emt 00:00:02]} Rc7 {[%clk
00:00:13]} {[%emt 00:00:09]} 34. Ra2 {[%clk 00:01:15]} {[%emt 00:00:04]} Bf6
{[%clk 00:00:13]} {[%emt 00:00:04]} 35. Kd2 {[%clk 00:00:43]} {[%emt 00:00:37]}
Ra7 {[%clk 00:00:12]} {[%emt 00:00:07]} 36. Kc2 {[%clk 00:00:41]} {[%emt
00:00:06]} h5 {[%clk 00:00:11]} {[%emt 00:00:07]} 37. Ra1 {[%clk 00:00:44]}
{[%emt 00:00:01]} Ke7 {[%clk 00:00:07]} {[%emt 00:00:09]} 38. Bxc4 {[%clk
00:00:43]} {[%emt 00:00:07]} Rc7 {[%clk 00:00:10]} {[%emt 00:00:02]} 39. Kb3
{[%clk 00:00:46]} Kd6 {[%clk 00:00:08]} {[%emt 00:00:07]} 40. a5 {[%clk
00:00:48]} {[%emt 00:00:04]} b5 {[%clk 00:00:10]} {[%emt 00:00:03]} 41. Bxb5
{[%clk 00:00:19]} {[%emt 00:00:33]} Rxc3+ {[%clk 00:00:13]} {[%emt 00:00:02]}
42. Ka4 {[%clk 00:00:22]} {[%emt 00:00:02]} Rc2 {[%clk 00:00:10]} {[%emt
00:00:08]} 43. Rd1+ {[%clk 00:00:25]} {[%emt 00:00:03]} Ke7 {[%clk 00:00:12]}
{[%emt 00:00:03]} 44. Bd3 {[%clk 00:00:24]} {[%emt 00:00:05]} Rxf2 {[%clk
00:00:14]} {[%emt 00:00:03]} 45. a6 {[%clk 00:00:27]} {[%emt 00:00:02]} Ra2+
{[%clk 00:00:17]} {[%emt 00:00:02]} 46. Kb5 {[%clk 00:00:30]} {[%emt 00:00:02]}
Bd4 {[%clk 00:00:19]} {[%emt 00:00:04]} 47. Bc4 {[%clk 00:00:32]} {[%emt
00:00:02]} Rxh2 {[%clk 00:00:08]} {[%emt 00:00:16]} 48. Rxd4 {[%clk 00:00:37]}
{[%emt 00:00:01]} e5 {[%clk 00:00:08]} {[%emt 00:00:05]} 49. Rd5 {[%clk
00:00:33]} {[%emt 00:00:09]} f6 {[%clk 00:00:07]} {[%emt 00:00:06]} 50. a7
{[%clk 00:00:36]} {[%emt 00:00:02]} Ra2 {[%clk 00:00:11]} 1-0

[Event "Open NK Rapid 2025 bord 26-50"]
[Site "Helmond, Netherlands"]
[Date "2025.05.03"]
[Round "5.2"]
[White "Kakrana, Reyansh"]
[Black "Van Ravensteijn, Antal"]
[Result "0-1"]
[TimeControl "15 min +5 sec increment"]
[WhiteFideId "1094092"]
[BlackFideId "1060759"]
[WhiteElo "1796"]
[BlackElo "2048"]

1. e4 {[%clk 00:15:08]} {[%emt 00:00:02]} d5 {[%clk 00:15:09]} {[%emt
00:00:01]} 2. exd5 {[%clk 00:15:11]} {[%emt 00:00:01]} Qxd5 {[%clk 00:15:12]}
{[%emt 00:00:03]} 3. d4 {[%clk 00:15:15]} {[%emt 00:00:02]} Nf6 {[%clk
00:15:14]} {[%emt 00:00:02]} 4. Nc3 {[%clk 00:15:18]} {[%emt 00:00:01]} Qd8
{[%clk 00:15:18]} {[%emt 00:00:01]} 5. Nf3 {[%clk 00:15:14]} {[%emt 00:00:10]}
g6 {[%clk 00:15:22]} {[%emt 00:00:01]} 6. Bc4 {[%clk 00:15:11]} {[%emt
00:00:08]} Bg7 {[%clk 00:15:25]} {[%emt 00:00:01]} 7. h3 {[%clk 00:12:43]}
{[%emt 00:02:34]} O-O {[%clk 00:15:15]} {[%emt 00:00:14]} 8. Be3 {[%clk
00:12:15]} {[%emt 00:00:34]} c6 {[%clk 00:14:32]} {[%emt 00:00:47]} 9. Qd2
{[%clk 00:11:45]} {[%emt 00:00:36]} b5 {[%clk 00:14:17]} {[%emt 00:00:20]} 10.
Bd3 {[%clk 00:11:31]} {[%emt 00:00:19]} Re8 {[%clk 00:14:01]} {[%emt 00:00:21]}
11. O-O {[%clk 00:10:23]} {[%emt 00:01:12]} Bb7 {[%clk 00:13:44]} {[%emt
00:00:23]} 12. Bh6 {[%clk 00:08:23]} {[%emt 00:02:05]} Bh8 {[%clk 00:13:38]}
{[%emt 00:00:10]} 13. Rad1 {[%clk 00:07:02]} {[%emt 00:01:28]} Na6 {[%clk
00:12:59]} {[%emt 00:00:43]} 14. Rfe1 {[%emt 00:01:40]} Nb4 {[%clk 00:12:28]}
{[%emt 00:00:32]} 15. a3 {[%clk 00:05:22]} {[%emt 00:00:15]} Nxd3 {[%clk
00:12:20]} {[%emt 00:00:12]} 16. Qxd3 {[%clk 00:05:25]} {[%emt 00:00:02]} Qb6
{[%clk 00:11:29]} {[%emt 00:00:56]} 17. Re2 {[%clk 00:04:37]} {[%emt 00:00:53]}
Rad8 {[%clk 00:10:11]} {[%emt 00:01:23]} 18. Rde1 {[%clk 00:03:43]} {[%emt
00:00:59]} e6 {[%clk 00:09:13]} {[%emt 00:01:02]} 19. Be3 {[%clk 00:03:46]}
{[%emt 00:00:02]} a5 {[%clk 00:08:35]} {[%emt 00:00:44]} 20. Ne4 {[%clk
00:03:16]} {[%emt 00:00:35]} Nxe4 {[%clk 00:06:20]} {[%emt 00:02:20]} 21. Qxe4
{[%clk 00:03:19]} {[%emt 00:00:02]} Qc7 {[%clk 00:05:46]} {[%emt 00:00:39]} 22.
Qh4 {[%clk 00:03:16]} {[%emt 00:00:07]} c5 {[%clk 00:04:47]} {[%emt 00:01:05]}
23. dxc5 {[%clk 00:01:46]} {[%emt 00:01:36]} Bxf3 {[%clk 00:04:17]} {[%emt
00:00:34]} 24. gxf3 {[%clk 00:01:49]} {[%emt 00:00:02]} Bxb2 {[%clk 00:04:15]}
{[%emt 00:00:07]} 25. c4 {[%clk 00:01:28]} {[%emt 00:00:26]} Bc3 {[%clk
00:03:47]} {[%emt 00:00:33]} 26. Rc1 {[%clk 00:01:27]} {[%emt 00:00:06]} b4
{[%clk 00:03:49]} {[%emt 00:00:02]} 27. axb4 {[%clk 00:00:39]} {[%emt
00:00:53]} axb4 {[%emt 00:00:08]} 28. Bg5 {[%clk 00:00:39]} Rd4 {[%clk
00:03:44]} {[%emt 00:00:12]} 29. Qg3 {[%clk 00:00:12]} {[%emt 00:00:33]} Qxg3+
{[%clk 00:03:13]} {[%emt 00:00:36]} 30. fxg3 {[%clk 00:00:16]} {[%emt
00:00:01]} Rxc4 {[%clk 00:03:16]} {[%emt 00:00:02]} 31. Be3 {[%clk 00:00:19]}
{[%emt 00:00:02]} Rd8 {[%clk 00:02:54]} {[%emt 00:00:27]} 32. Kf2 {[%clk
00:00:16]} {[%emt 00:00:08]} Kf8 {[%clk 00:02:16]} {[%emt 00:00:43]} 33. Bh6+
{[%clk 00:00:08]} {[%emt 00:00:12]} Ke7 {[%clk 00:02:18]} {[%emt 00:00:04]} 34.
Bg5+ {[%clk 00:00:11]} {[%emt 00:00:03]} f6 {[%clk 00:02:21]} 35. Be3 {[%clk
00:00:15]} Rd5 {[%clk 00:02:19]} {[%emt 00:00:07]} 36. Ra2 {[%clk 00:00:12]}
{[%emt 00:00:09]} Rd7 {[%clk 00:02:01]} {[%emt 00:00:22]} 37. Rac2 {[%clk
00:00:07]} {[%emt 00:00:10]} e5 {[%clk 00:01:35]} {[%emt 00:00:31]} 38. Ke2
{[%clk 00:00:09]} {[%emt 00:00:03]} Ke6 {[%clk 00:01:34]} {[%emt 00:00:06]} 39.
Bd2 {[%clk 00:00:08]} {[%emt 00:00:06]} Rxc5 {[%clk 00:00:21]} {[%emt
00:01:18]} 40. Bxc3 {[%clk 00:00:12]} {[%emt 00:00:01]} bxc3 {[%clk 00:00:22]}
{[%emt 00:00:05]} 41. Rxc3 {[%clk 00:00:14]} {[%emt 00:00:02]} Ra5 {[%emt
00:00:09]} 42. Rc6+ {[%clk 00:00:12]} Kf5 {[%clk 00:00:26]} {[%emt 00:00:04]}
43. R1c2 {[%clk 00:00:11]} {[%emt 00:00:06]} Ra3 {[%clk 00:00:27]} {[%emt
00:00:04]} 44. g4+ {[%clk 00:00:12]} {[%emt 00:00:04]} Kg5 {[%clk 00:00:28]}
{[%emt 00:00:04]} 45. h4+ {[%clk 00:00:09]} {[%emt 00:00:09]} Kxh4 {[%clk
00:00:29]} {[%emt 00:00:03]} 46. Rxf6 {[%clk 00:00:12]} {[%emt 00:00:02]} Rdd3
{[%clk 00:00:30]} {[%emt 00:00:03]} 47. Kf2 {[%clk 00:00:10]} {[%emt 00:00:07]}
Kg5 {[%clk 00:00:32]} {[%emt 00:00:03]} 48. Rf7 {[%clk 00:00:13]} {[%emt
00:00:03]} h6 {[%clk 00:00:33]} {[%emt 00:00:05]} 49. Rc5 {[%clk 00:00:14]}
{[%emt 00:00:03]} Re3 {[%clk 00:00:31]} {[%emt 00:00:07]} 50. f4+ {[%clk
00:00:10]} {[%emt 00:00:10]} Kxg4 {[%clk 00:00:33]} {[%emt 00:00:03]} 51. fxe5
{[%clk 00:00:13]} {[%emt 00:00:01]} Re4 {[%clk 00:00:18]} {[%emt 00:00:20]} 52.
Rf6 {[%clk 00:00:10]} {[%emt 00:00:08]} Ra2+ {[%clk 00:00:22]} {[%emt
00:00:01]} 53. Kf1 {[%clk 00:00:10]} {[%emt 00:00:05]} Ra1+ {[%clk 00:00:18]}
{[%emt 00:00:09]} 54. Kf2 {[%clk 00:00:13]} {[%emt 00:00:02]} Ra2+ {[%clk
00:00:22]} {[%emt 00:00:02]} 55. Kf1 {[%clk 00:00:17]} Rf4+ {[%clk 00:00:20]}
{[%emt 00:00:08]} 56. Rxf4+ {[%clk 00:00:18]} {[%emt 00:00:03]} Kxf4 {[%emt
00:00:05]} 57. Rc6 {[%clk 00:00:12]} {[%emt 00:00:07]} Kf5 {[%clk 00:00:18]}
{[%emt 00:00:11]} 58. Rf6+ {[%clk 00:00:09]} {[%emt 00:00:07]} Kg5 {[%clk
00:00:12]} {[%emt 00:00:12]} 59. Rf3 {[%clk 00:00:08]} {[%emt 00:00:06]} Ra6
{[%clk 00:00:10]} {[%emt 00:00:07]} 60. Kf2 {[%clk 00:00:07]} {[%emt 00:00:06]}
Re6 {[%clk 00:00:14]} 61. Rg3+ {[%clk 00:00:10]} {[%emt 00:00:02]} Kf5 {[%clk
00:00:18]} {[%emt 00:00:01]} 62. Rh3 {[%clk 00:00:14]} {[%emt 00:00:01]} h5
{[%clk 00:00:20]} {[%emt 00:00:03]} 63. Rg3 {[%clk 00:00:09]} {[%emt 00:00:11]}
Rxe5 {[%clk 00:00:22]} {[%emt 00:00:02]} 64. Kf3 {[%clk 00:00:13]} Ra5 {[%clk
00:00:26]} {[%emt 00:00:02]} 65. Rg1 {[%clk 00:00:16]} g5 {[%clk 00:00:29]}
{[%emt 00:00:02]} 66. Rh1 {[%clk 00:00:19]} {[%emt 00:00:02]} g4+ {[%clk
00:00:31]} {[%emt 00:00:02]} 67. Kf2 {[%clk 00:00:20]} {[%emt 00:00:05]} Kf4
{[%clk 00:00:34]} {[%emt 00:00:03]} 68. Rb1 {[%clk 00:00:22]} {[%emt 00:00:03]}
Ra2+ {[%clk 00:00:36]} {[%emt 00:00:02]} 69. Kg1 {[%clk 00:00:16]} {[%emt
00:00:10]} Kg3 {[%clk 00:00:32]} {[%emt 00:00:10]} 70. Rb3+ {[%clk 00:00:20]}
{[%emt 00:00:02]} Kh4 {[%clk 00:00:36]} 71. Rc3 {[%clk 00:00:17]} {[%emt
00:00:08]} g3 {[%clk 00:00:39]} {[%emt 00:00:02]} 72. Rc5 {[%clk 00:00:17]}
{[%emt 00:00:05]} Kg4 {[%clk 00:00:39]} {[%emt 00:00:06]} 73. Rc7 {[%clk
00:00:20]} {[%emt 00:00:02]} Kh3 {[%clk 00:00:39]} {[%emt 00:00:04]} 74. Rc3
{[%clk 00:00:17]} {[%emt 00:00:08]} Ra1+ {[%clk 00:00:42]} {[%emt 00:00:02]}
0-1

[Event "Open NK Rapid 2025 bord 26-50"]
[Site "Helmond, Netherlands"]
[Date "2025.05.03"]
[Round "5.3"]
[White "Mau-Asam, LÃ©on"]
[Black "Aarts, Joaquin"]
[Result "0-1"]
[TimeControl "15 min +5 sec increment"]
[WhiteFideId "40105890"]
[BlackFideId "1078224"]
[WhiteElo "1795"]
[BlackElo "2027"]

1. d4 {[%clk 00:15:07]} {[%emt 00:00:02]} Nf6 {[%clk 00:15:07]} {[%emt
00:00:03]} 2. c4 {[%clk 00:15:10]} {[%emt 00:00:02]} e6 {[%clk 00:15:11]}
{[%emt 00:00:02]} 3. Nc3 {[%clk 00:15:14]} {[%emt 00:00:01]} Bb4 {[%clk
00:15:14]} {[%emt 00:00:02]} 4. e3 {[%clk 00:15:17]} {[%emt 00:00:01]} b6
{[%clk 00:14:52]} {[%emt 00:00:27]} 5. Bd2 {[%clk 00:14:39]} {[%emt 00:00:43]}
Bb7 {[%clk 00:14:52]} {[%emt 00:00:06]} 6. Nf3 {[%clk 00:14:41]} {[%emt
00:00:02]} O-O {[%clk 00:14:53]} {[%emt 00:00:05]} 7. Be2 {[%clk 00:14:43]}
{[%emt 00:00:02]} d6 {[%clk 00:14:48]} {[%emt 00:00:10]} 8. a3 {[%clk
00:14:35]} {[%emt 00:00:13]} Bxc3 {[%clk 00:14:50]} {[%emt 00:00:03]} 9. Bxc3
{[%clk 00:14:38]} {[%emt 00:00:02]} Ne4 {[%clk 00:14:54]} {[%emt 00:00:02]} 10.
Rc1 {[%clk 00:14:41]} {[%emt 00:00:02]} f5 {[%clk 00:14:53]} {[%emt 00:00:06]}
11. O-O {[%clk 00:12:59]} {[%emt 00:01:47]} Nd7 {[%clk 00:14:04]} {[%emt
00:00:54]} 12. Nd2 {[%clk 00:11:34]} {[%emt 00:01:29]} Qg5 {[%clk 00:09:27]}
{[%emt 00:04:43]} 13. f4 {[%clk 00:04:59]} {[%emt 00:06:40]} Qxg2+ {[%clk
00:07:14]} {[%emt 00:02:17]} 14. Kxg2 {[%clk 00:04:49]} {[%emt 00:00:15]} Nxc3+
{[%clk 00:07:17]} {[%emt 00:00:02]} 15. Kf2 {[%clk 00:04:28]} {[%emt 00:00:26]}
Nxd1+ {[%clk 00:07:20]} {[%emt 00:00:03]} 16. Rcxd1 {[%clk 00:04:31]} {[%emt
00:00:02]} Nf6 {[%clk 00:05:27]} {[%emt 00:01:58]} 17. Rg1 {[%clk 00:03:17]}
{[%emt 00:01:18]} Kf7 {[%clk 00:05:29]} {[%emt 00:00:03]} 18. Bf3 {[%clk
00:02:16]} {[%emt 00:01:07]} Bxf3 {[%clk 00:05:08]} {[%emt 00:00:26]} 19. Nxf3
{[%clk 00:02:17]} {[%emt 00:00:03]} Ne4+ {[%clk 00:05:11]} {[%emt 00:00:03]} 20.
Ke2 {[%clk 00:02:19]} {[%emt 00:00:02]} h6 {[%clk 00:05:12]} {[%emt 00:00:05]}
21. d5 {[%clk 00:01:58]} {[%emt 00:00:26]} exd5 {[%clk 00:03:30]} {[%emt
00:01:47]} 22. cxd5 {[%clk 00:02:01]} {[%emt 00:00:02]} Rfe8 {[%clk 00:02:21]}
{[%emt 00:01:12]} 23. Nd4 {[%clk 00:01:57]} {[%emt 00:00:10]} g6 {[%clk
00:02:21]} {[%emt 00:00:05]} 24. Ne6 {[%clk 00:00:57]} {[%emt 00:01:06]} Rac8
{[%clk 00:02:00]} {[%emt 00:00:26]} 25. Nd4 {[%clk 00:00:46]} {[%emt 00:00:16]}
Nf6 {[%clk 00:01:48]} {[%emt 00:00:16]} 26. Nc6 {[%clk 00:00:40]} {[%emt
00:00:13]} a5 {[%clk 00:01:49]} {[%emt 00:00:02]} 27. h3 {[%clk 00:00:37]}
{[%emt 00:00:08]} Re4 {[%clk 00:01:20]} {[%emt 00:00:33]} 28. Rd3 {[%clk
00:00:17]} {[%emt 00:00:28]} Rc4 {[%clk 00:01:03]} {[%emt 00:00:15]} 29. Rxg6
{[%clk 00:00:19]} {[%emt 00:00:09]} Kxg6 {[%clk 00:00:14]} {[%emt 00:00:54]} 30.
Ne7+ {[%clk 00:00:23]} Kf7 {[%clk 00:00:08]} {[%emt 00:00:11]} 31. Nxc8 {[%clk
00:00:26]} {[%emt 00:00:02]} Ne4 {[%clk 00:00:12]} {[%emt 00:00:01]} 32. b3
{[%clk 00:00:10]} {[%emt 00:00:20]} Rc2+ {[%clk 00:00:16]} {[%emt 00:00:02]} 33.
Kf3 {[%clk 00:00:14]} {[%emt 00:00:01]} Rf2# {[%clk 00:00:19]} 0-1

[Event "Open NK Rapid 2025 bord 26-50"]
[Site "Helmond, Netherlands"]
[Date "2025.05.03"]
[Round "5.4"]
[White "Den Heijer, Rolinde"]
[Black "Timmer, Michel"]
[Result "1-0"]
[TimeControl "15 min +5 sec increment"]
[WhiteFideId "1068300"]
[BlackFideId "40104524"]
[WhiteElo "1991"]
[BlackElo "1796"]

1. e4 {[%clk 00:15:09]} e5 {[%clk 00:15:07]} {[%emt 00:00:04]} 2. Nf3 {[%clk
00:15:12]} {[%emt 00:00:01]} Nf6 {[%clk 00:15:10]} {[%emt 00:00:02]} 3. Nxe5
{[%clk 00:15:14]} {[%emt 00:00:03]} Nxe4 {[%clk 00:15:13]} {[%emt 00:00:02]} 4.
Qe2 {[%clk 00:14:18]} {[%emt 00:01:01]} Qe7 {[%clk 00:15:16]} {[%emt 00:00:02]}
5. d4 {[%clk 00:13:25]} {[%emt 00:00:58]} d5 {[%clk 00:15:01]} {[%emt
00:00:20]} 6. Nd2 {[%clk 00:12:59]} {[%emt 00:00:31]} Nd7 {[%clk 00:14:41]}
{[%emt 00:00:24]} 7. Nxe4 {[%clk 00:12:41]} {[%emt 00:00:23]} dxe4 {[%clk
00:13:53]} {[%emt 00:00:53]} 8. Nxd7 {[%clk 00:11:48]} {[%emt 00:00:59]} Bxd7
{[%clk 00:13:51]} {[%emt 00:00:07]} 9. Bd2 {[%clk 00:11:46]} {[%emt 00:00:07]}
g6 {[%clk 00:12:59]} {[%emt 00:00:57]} 10. O-O-O {[%clk 00:11:33]} {[%emt
00:00:18]} O-O-O {[%clk 00:12:06]} {[%emt 00:00:58]} 11. Qe3 {[%clk 00:10:45]}
{[%emt 00:00:54]} Kb8 {[%clk 00:11:28]} {[%emt 00:00:43]} 12. Bc4 {[%clk
00:10:38]} {[%emt 00:00:11]} Be6 {[%clk 00:10:32]} {[%emt 00:01:01]} 13. Bxe6
{[%clk 00:10:21]} {[%emt 00:00:22]} Qxe6 {[%clk 00:10:33]} {[%emt 00:00:04]} 14.
Kb1 {[%clk 00:10:21]} {[%emt 00:00:05]} Bg7 {[%clk 00:10:26]} {[%emt 00:00:11]}
15. Bc3 {[%clk 00:10:20]} {[%emt 00:00:07]} Qd5 {[%clk 00:09:19]} {[%emt
00:01:13]} 16. a3 {[%clk 00:09:52]} {[%emt 00:00:32]} Rhe8 {[%clk 00:08:46]}
{[%emt 00:00:38]} 17. g4 {[%clk 00:09:36]} {[%emt 00:00:21]} f5 {[%clk
00:07:55]} {[%emt 00:00:56]} 18. Rhg1 {[%clk 00:09:27]} {[%emt 00:00:14]} fxg4
{[%clk 00:07:26]} {[%emt 00:00:35]} 19. Rxg4 {[%clk 00:09:26]} {[%emt
00:00:05]} Qf5 {[%clk 00:07:27]} {[%emt 00:00:04]} 20. Rgg1 {[%clk 00:08:17]}
{[%emt 00:01:14]} Rf8 {[%clk 00:07:18]} {[%emt 00:00:15]} 21. h4 {[%clk
00:08:05]} {[%emt 00:00:16]} Qf3 {[%clk 00:06:03]} {[%emt 00:01:21]} 22. Qe1
{[%clk 00:06:43]} {[%emt 00:01:26]} Rde8 {[%clk 00:05:30]} {[%emt 00:00:38]} 23.
Bb4 {[%clk 00:06:18]} {[%emt 00:00:30]} Rf4 {[%clk 00:05:06]} {[%emt 00:00:28]}
24. Rf1 {[%clk 00:05:51]} {[%emt 00:00:33]} Rxh4 {[%clk 00:04:57]} {[%emt
00:00:14]} 25. d5 {[%clk 00:05:42]} {[%emt 00:00:14]} a6 {[%clk 00:03:13]}
{[%emt 00:01:50]} 26. d6 {[%clk 00:05:32]} {[%emt 00:00:14]} cxd6 {[%clk
00:03:11]} {[%emt 00:00:07]} 27. Rxd6 {[%clk 00:05:24]} {[%emt 00:00:13]} Rf4
{[%clk 00:02:30]} {[%emt 00:00:46]} 28. Qd2 {[%clk 00:03:33]} {[%emt 00:01:57]}
Rff8 {[%clk 00:01:21]} {[%emt 00:01:13]} 29. Rd7 {[%clk 00:02:59]} {[%emt
00:00:39]} e3 {[%clk 00:00:45]} {[%emt 00:00:41]} 30. Qd6+ {[%clk 00:02:49]}
{[%emt 00:00:15]} Ka8 {[%clk 00:00:45]} {[%emt 00:00:05]} 31. Rxg7 {[%clk
00:02:02]} {[%emt 00:00:51]} exf2 {[%clk 00:00:30]} {[%emt 00:00:20]} 32. Qb6
{[%clk 00:00:48]} {[%emt 00:01:20]} Rf6 {[%clk 00:00:10]} {[%emt 00:00:26]} 33.
Qc7 {[%clk 00:00:26]} {[%emt 00:00:26]} Rfe6 {[%clk 00:00:10]} {[%emt
00:00:05]} 34. Rxf2 {[%clk 00:00:19]} {[%emt 00:00:12]} Qd1+ {[%clk 00:00:11]}
{[%emt 00:00:05]} 35. Ka2 {[%clk 00:00:23]} {[%emt 00:00:01]} Qd5+ {[%clk
00:00:10]} {[%emt 00:00:06]} 36. c4 {[%clk 00:00:25]} {[%emt 00:00:02]} Qe4
{[%clk 00:00:11]} {[%emt 00:00:04]} 37. Rd7 {[%clk 00:00:24]} {[%emt 00:00:07]}
Rc6 {[%clk 00:00:12]} {[%emt 00:00:03]} 38. Rd8+ {[%clk 00:00:20]} {[%emt
00:00:09]} Rxd8 {[%clk 00:00:09]} {[%emt 00:00:08]} 39. Qxd8+ {[%clk 00:00:23]}
{[%emt 00:00:03]} Ka7 {[%clk 00:00:13]} 40. b3 {[%clk 00:00:10]} {[%emt
00:00:18]} h5 {[%clk 00:00:17]} {[%emt 00:00:01]} 41. Bc3 {[%clk 00:00:11]}
{[%emt 00:00:05]} Re6 {[%clk 00:00:07]} {[%emt 00:00:16]} 42. Bd4+ {[%clk
00:00:11]} {[%emt 00:00:04]} b6 {[%clk 00:00:10]} {[%emt 00:00:02]} 43. Rf7+
{[%clk 00:00:15]} 1-0